bitfinex-derivatives/quotes_BTCF0:USTF0_20250209
["timestamp","ask_amount","ask_price","bid_price","bid_amount"]
[1739137925615,0.2108315,94849.0,94836.0,0.3608]
[1739137925815,0.6359,94871.0,94836.0,0.3608]
[1739137925816,0.2107991,94863.0,94839.0,0.2108515]
[1739137926021,0.18278146,94854.0,94847.0,0.3608]
[1739137926218,0.3608,94850.0,94848.0,0.3578]
[1739137926419,0.5716291,94850.0,94848.0,0.3578]
[1739137926819,0.3608,94850.0,94848.0,0.3578]
[1739137927426,0.3608,94849.0,94840.0,0.0001582]
[1739137927624,0.2108677,94832.0,94829.0,0.3681]
[1739137927825,0.3608,94830.0,94829.0,0.3681]
[1739137930618,0.3608,94830.0,94820.0,0.0001582]
[1739137930824,0.5716916,94821.0,94820.0,0.0001582]
[1739137932330,0.3608,94821.0,94820.0,0.0001582]
[1739137932533,0.3608,94830.0,94820.0,0.0001582]
[1739137932735,0.0001582,94839.0,94822.0,0.3608]
[1739137932927,0.3608,94836.0,94823.0,0.7072]
[1739137933127,0.3608,94836.0,94824.0,0.3519]
[1739137933330,0.3608,94836.0,94824.0,0.7072]
[1739137933541,0.2108827,94825.0,94824.0,0.7072]
[1739137934233,0.3608,94828.0,94824.0,0.7072]
[1739137934427,0.3608,94836.0,94825.0,0.9180817]
[1739137934733,0.0001582,94839.0,94835.0,0.3608]
[1739137935126,0.2108291,94850.0,94836.0,0.3519]
[1739137935321,0.2108291,94850.0,94847.0,0.3608]
[1739137935627,0.3608,94864.0,94849.0,0.3608]
[1739137935824,0.3608,94873.0,94849.0,0.3608]
[1739137935825,0.2107908,94867.0,94859.0,0.3608]
[1739137936131,0.2107969,94864.0,94859.0,0.3608]
[1739137936325,0.00015812,94872.0,94859.0,0.3608]
[1739137936530,0.00015812,94872.0,94870.0,0.3608]
[1739137937128,0.2107804,94871.0,94870.0,0.3608]
[1739137938022,0.18278146,94875.0,94871.0,0.2107804]
[1739137938224,0.18278146,94875.0,94873.0,0.2107758]
[1739137938440,0.5722271,94886.0,94873.0,0.2107758]
[1739137938740,0.2107542,94883.0,94878.0,0.3608]
[1739137939330,0.3608,94886.0,94878.0,0.3608]
[1739137939529,0.00015812,94890.0,94878.0,0.3608]
[1739137939732,0.00015812,94890.0,94888.0,0.3608]
[1739137940233,0.00068,94910.0,94889.0,0.2107404]
[1739137940435,0.2107139,94901.0,94889.0,0.2107404]
[1739137940635,0.2107139,94901.0,94896.0,0.3608]
[1739137941032,0.2106969,94909.0,94896.0,0.3608]
[1739137941336,0.2106969,94909.0,94904.0,0.3608]
[1739137941739,0.2106969,94909.0,94897.0,0.6427]
[1739137941740,0.2107204,94898.0,94897.0,0.37786]
[1739137942037,0.210756,94882.0,94880.0,0.00015812]
[1739137945641,0.210756,94882.0,94880.0,0.00025812]
[1739137946530,0.00015812,94890.0,94880.0,0.00025812]
[1739137946730,0.2107404,94889.0,94888.0,0.3608]
[1739137947241,0.2107216,94898.0,94888.0,0.3608]
[1739137947442,0.29641909,94910.0,94896.0,0.3608]
[1739137947642,0.3608,94897.0,94880.0,0.00025812]
[1739137947847,0.2107582,94881.0,94880.0,0.00025812]
[1739137949041,0.00015812,94890.0,94880.0,0.66105812]
[1739137949248,0.00015812,94890.0,94889.0,0.3608]
[1739137949442,0.36095812,94890.0,94880.0,0.36161812]
[1739137949648,0.210757,94882.0,94880.0,0.36105812]
[1739137949947,0.3608,94881.0,94880.0,0.00025812]
[1739137951137,0.210757,94882.0,94880.0,0.00025812]
[1739137952049,0.3608,94881.0,94880.0,0.00025812]
[1739137953746,0.210757,94882.0,94880.0,0.00025812]
[1739137956052,0.20232619,94882.0,94880.0,0.00025812]
[1739137956247,0.3608,94881.0,94880.0,0.00025812]
[1739137956443,0.3608,94881.0,94861.0,0.3497]
[1739137956656,0.2108004,94862.0,94861.0,0.3497]
[1739137957150,0.2108004,94862.0,94861.0,0.7105]
[1739137957449,0.2108004,94862.0,94861.0,0.3497]
[1739137957654,0.2108004,94862.0,94860.0,0.00056]
[1739137957851,0.3608,94869.0,94859.0,0.0001]
[1739137957852,0.2108049,94860.0,94859.0,0.0001]
[1739137958847,0.2108049,94860.0,94859.0,0.0011]
[1739137959952,0.5716049,94860.0,94859.0,0.0011]
[1739137960565,0.5716049,94860.0,94858.0,4e-08]
[1739137960759,0.245,94859.0,94858.0,4e-08]
[1739137961267,0.245,94859.0,94852.0,0.00015812]
[1739137961268,0.2108204,94853.0,94852.0,6e-08]
[1739137962955,0.5108204,94853.0,94852.0,6e-08]
[1739137963157,0.5217201,94853.0,94852.0,6e-08]
[1739137963660,0.5217201,94853.0,94824.0,0.25093461]
[1739137963661,0.2108827,94825.0,94824.0,0.25093461]
[1739137964166,0.2108827,94825.0,94815.0,0.25093461]
[1739137964765,0.3608,94826.0,94816.0,0.2109006]
[1739137965062,0.3608,94826.0,94815.0,0.25093461]
[1739137965264,0.2108881,94823.0,94815.0,0.25093461]
[1739137966268,0.00015812,94829.0,94820.0,0.3608]
[1739137966765,0.2108901,94822.0,94820.0,0.3608]
[1739137967454,0.00015812,94829.0,94820.0,0.3608]
[1739137967761,0.00015812,94829.0,94821.0,0.2108916]
[1739137967962,0.21103212,94829.0,94820.0,0.3608]
[1739137968163,0.2108802,94827.0,94820.0,0.3608]
[1739137968359,0.2108896,94822.0,94820.0,0.3608]
[1739137969971,0.2109049,94815.0,94814.0,0.00158172]
[1739137970171,0.5717049,94815.0,94813.0,0.11026042]
[1739137970374,0.2109116,94812.0,94811.0,0.00015812]
[1739137972666,0.2109116,94812.0,94811.0,0.00115812]
[1739137976160,0.2109116,94812.0,94811.0,1e-08]
[1739137976874,0.5109116,94812.0,94811.0,1e-08]
[1739137977870,0.2109361,94801.0,94800.0,0.1]
[1739137978079,0.3608,94801.0,94772.0,0.2109995]
[1739137978277,0.2109891,94778.0,94776.0,0.25093461]
[1739137978772,0.4142214,94788.0,94769.0,0.3586]
[1739137978971,0.2110051,94770.0,94769.0,0.3586]
[1739137979168,0.2110051,94770.0,94769.0,0.3587582]
[1739137980272,0.2110051,94770.0,94769.0,0.37408618]
[1739137981275,0.210986,94779.0,94773.0,0.210997]
[1739137981469,0.210986,94779.0,94778.0,0.3608]
[1739137981670,0.210986,94779.0,94778.0,0.40064251]
[1739137982271,0.210986,94779.0,94778.0,0.37612665]
[1739137982874,0.210986,94779.0,94778.0,0.3608]
[1739137983085,0.01072208,94788.0,94778.0,0.3758727]
[1739137983379,0.01072208,94788.0,94786.0,0.3608]
[1739137983580,0.22168708,94788.0,94787.0,0.0150727]
[1739137984167,0.01072208,94788.0,94787.0,0.0150727]
[1739137984372,0.19201869,94820.0,94787.0,0.03946373]
[1739137984571,0.19201869,94820.0,94812.0,0.3608]
[1739137984774,0.0527241,94819.0,94803.0,0.3608]
[1739137984975,0.2109272,94805.0,94804.0,0.01524318]
[1739137985174,0.2109272,94805.0,94804.0,0.04086019]
[1739137985378,0.2109552,94793.0,94786.0,0.3608]
[1739137985580,0.2109552,94793.0,94788.0,0.2109633]
[1739137985771,0.2109552,94793.0,94789.0,0.07365506]
[1739137985971,0.2109579,94792.0,94790.0,0.07365506]
[1739137986168,0.2109579,94792.0,94791.0,0.0416308]
[1739137986786,0.3608,94802.0,94793.0,0.210953]
[1739137986978,0.3608,94802.0,94794.0,0.2525814]
[1739137987275,0.2109465,94797.0,94795.0,0.01499194]
[1739137987476,0.2109465,94797.0,94794.0,0.2109506]
[1739137987477,0.2109465,94797.0,94796.0,0.39977945]
[1739137987683,0.2109279,94805.0,94800.0,0.2109371]
[1739137987879,0.3608,94810.0,94808.0,0.210919]
[1739137988081,0.2109125,94812.0,94809.0,0.39978806]
[1739137988288,0.0001582,94814.0,94811.0,0.2109121]
[1739137988577,0.0001582,94814.0,94812.0,0.24989856]
[1739137988777,0.0001582,94814.0,94813.0,0.03916094]
[1739137989172,0.19201869,94830.0,94813.0,0.03916094]
[1739137989173,0.2108858,94824.0,94813.0,0.03916094]
[1739137989370,0.2109034,94816.0,94814.0,0.03916094]
[1739137989570,0.2109034,94816.0,94815.0,0.01506178]
[1739137990475,0.2109034,94816.0,94815.0,0.03953821]
[1739137991386,0.2109034,94816.0,94815.0,0.01506178]
[1739137992075,0.2109034,94816.0,94815.0,0.03935534]
[1739137992276,0.2109034,94816.0,94815.0,0.03916796]
[1739137992675,0.0001582,94825.0,94815.0,0.03916796]
[1739137992875,0.0001582,94825.0,94824.0,0.3608]
[1739137993077,0.0001582,94825.0,94824.0,0.39996796]
[1739137993277,0.0001582,94825.0,94824.0,0.64356796]
[1739137995180,0.0001582,94825.0,94824.0,0.61946178]
[1739137995687,0.0001582,94825.0,94824.0,0.85386335]
[1739137996978,0.0001582,94825.0,94824.0,0.64297845]
[1739137997178,0.0001582,94825.0,94824.0,0.61946178]
[1739137998191,0.0001582,94825.0,94824.0,0.6188446]
[1739137998390,0.0001582,94825.0,94824.0,0.64261407]
[1739137998893,0.0001582,94825.0,94824.0,0.85349897]
[1739137999388,0.0001582,94825.0,94824.0,0.2580446]
[1739137999590,0.0001582,94825.0,94815.0,0.7511]
[1739137999795,0.0001582,94825.0,94824.0,0.3608]
[1739138000096,0.2109006,94817.0,94815.0,0.75106]
[1739138000285,0.2109006,94817.0,94815.0,0.7505]
[1739138001600,0.2109006,94817.0,94816.0,0.01443025]
[1739138001988,0.2109006,94817.0,94815.0,0.7511]
[1739138002293,0.2109006,94817.0,94816.0,0.01451643]
[1739138003795,0.2109138,94811.0,94810.0,0.3608]
[1739138004191,0.2109138,94811.0,94810.0,0.0145701]
[1739138004399,0.19201869,94820.0,94808.0,0.3608]
[1739138004586,0.2109183,94809.0,94808.0,0.3608]
[1739138004784,0.55281869,94820.0,94806.0,0.25093461]
[1739138004987,0.2109227,94807.0,94806.0,0.25093461]
[1739138005389,0.2109294,94804.0,94799.0,0.3614]
[1739138005589,0.2109294,94804.0,94799.0,0.3608]
[1739138006494,0.2109294,94804.0,94794.0,0.25251697]
[1739138008096,0.5717294,94804.0,94794.0,0.25251697]
[1739138008689,0.5717294,94804.0,94794.0,0.00158236]
[1739138009187,0.5717294,94804.0,94795.0,0.3608]
[1739138009395,0.2109294,94804.0,94795.0,0.3608]
[1739138010496,0.2109294,94804.0,94803.0,0.3609582]
[1739138011599,0.2109294,94804.0,94803.0,0.39175012]
[1739138012500,0.2109093,94814.0,94803.0,0.60267972]
[1739138012687,0.2109093,94814.0,94804.0,0.40560447]
[1739138012891,0.21089,94822.0,94805.0,0.22523157]
[1739138013091,0.21089,94822.0,94806.0,0.01430447]
[1739138013300,0.21089,94822.0,94807.0,0.03079192]
[1739138013505,0.21089,94822.0,94808.0,0.03823291]
[1739138013701,0.21089,94822.0,94809.0,0.03823291]
[1739138013903,0.21089,94822.0,94810.0,0.03823291]
[1739138014205,0.21089,94822.0,94811.0,0.03823291]
[1739138014402,0.21089,94822.0,94812.0,0.03823291]
[1739138014699,0.21089,94822.0,94813.0,0.05472036]
[1739138014890,0.21089,94822.0,94814.0,0.03823291]
[1739138015095,0.21089,94822.0,94815.0,0.03823291]
[1739138015404,0.21089,94822.0,94817.0,0.3608]
[1739138015603,0.21089,94822.0,94818.0,0.01430447]
[1739138015804,0.21089,94822.0,94819.0,0.01430447]
[1739138016100,0.21089,94822.0,94820.0,0.01430447]
[1739138016307,0.12819689,94830.0,94821.0,0.03815673]
[1739138016495,0.12819689,94830.0,94822.0,0.05464418]
[1739138016805,0.12819689,94830.0,94823.0,0.03822431]
[1739138017006,0.2108795,94827.0,94824.0,0.01430447]
[1739138017506,0.2108795,94827.0,94824.0,0.03079192]
[1739138017805,0.2110409,94825.0,94824.0,0.03079192]
[1739138019101,0.2110409,94825.0,94824.0,0.03129268]
[1739138019607,0.2110409,94825.0,94824.0,0.01648745]
[1739138020007,0.2108938,94820.0,94819.0,0.18920469]
[1739138020305,0.2108938,94820.0,94819.0,0.20382787]
[1739138020498,0.2108938,94820.0,94819.0,0.18920469]
[1739138020806,0.2108938,94820.0,94819.0,0.21998733]
[1739138021500,0.2108938,94820.0,94819.0,0.20569088]
[1739138022199,0.22169444,94820.0,94819.0,0.20569088]
[1739138022402,0.22169444,94820.0,94819.0,0.18920469]
[1739138022901,0.22169444,94820.0,94816.0,0.18920469]
[1739138022902,0.2109006,94817.0,94816.0,0.18920469]
[1739138026012,0.21085953,94817.0,94816.0,0.18920469]
[1739138027410,0.21085953,94817.0,94809.0,0.2109179]
[1739138028713,0.3608,94812.0,94808.0,0.2109189]
[1739138029213,0.3608,94812.0,94811.0,0.210914]
[1739138029913,0.2108971,94819.0,94811.0,0.210914]
[1739138030227,0.3608,94813.0,94803.0,0.0001582]
[1739138030508,0.2109251,94806.0,94805.0,0.18920469]
[1739138030699,0.70066699,94813.0,94805.0,0.18920469]
[1739138031010,0.5717101,94813.0,94805.0,0.18920469]
[1739138031213,0.3608,94813.0,94806.0,0.2109243]
[1739138031511,0.3608,94813.0,94806.0,0.5717243]
[1739138031702,0.2109223,94808.0,94806.0,0.5717243]
[1739138032606,0.2109223,94808.0,94806.0,0.3608]
[1739138034017,0.2109223,94808.0,94807.0,0.18920469]
[1739138034717,0.3715142,94813.0,94808.0,0.2109188]
[1739138035217,0.0001582,94825.0,94823.0,0.210886]
[1739138035417,0.00072,94861.0,94810.0,0.0527289]
[1739138035418,0.3608,94856.0,94824.0,0.7216]
[1739138035610,0.3608,94868.0,94853.0,0.3608]
[1739138035803,0.571589,94868.0,94858.0,0.2108082]
[1739138036011,0.5715661,94878.0,94868.0,0.2107873]
[1739138036217,0.19335901,94869.0,94868.0,0.5715873]
[1739138036513,0.19335901,94869.0,94868.0,0.37534361]
[1739138036718,0.19335901,94869.0,94859.0,0.00015811]
[1739138036903,0.2107973,94864.0,94860.0,0.01454368]
[1739138037106,0.19335901,94869.0,94861.0,0.01454368]
[1739138037412,0.19335901,94869.0,94863.0,0.3608]
[1739138037601,0.19335901,94869.0,94859.0,0.00015811]
[1739138037602,0.19335901,94869.0,94864.0,0.01441927]
[1739138037806,0.2108034,94861.0,94859.0,0.00015811]
[1739138038418,0.01049235,94869.0,94859.0,0.00015811]
[1739138038610,0.33898089,94870.0,94859.0,0.00015811]
[1739138038812,0.2107921,94866.0,94860.0,0.01485024]
[1739138039018,0.2107921,94866.0,94859.0,0.00015811]
[1739138039213,0.2107966,94864.0,94859.0,0.00015811]
[1739138039716,0.2108015,94862.0,94859.0,0.00015811]
[1739138040016,0.3608,94860.0,94859.0,0.00015811]
[1739138040314,0.2108295,94849.0,94848.0,0.18920469]
[1739138041309,0.3608,94851.0,94841.0,0.18920469]
[1739138041618,0.2108442,94843.0,94841.0,0.18920469]
[1739138042517,0.3608,94842.0,94841.0,0.18920469]
[1739138043712,0.3608,94842.0,94832.0,0.25093461]
[1739138043713,0.210865,94833.0,94832.0,0.25093461]
[1739138044018,0.571665,94833.0,94832.0,0.25093461]
[1739138045313,0.210879,94827.0,94823.0,0.00015811]
[1739138046221,0.01059017,94833.0,94823.0,0.00015811]
[1739138046422,0.00015811,94834.0,94832.0,0.3608]
[1739138047118,0.210865,94833.0,94832.0,0.3608]
[1739138047314,0.2108843,94825.0,94823.0,0.00015811]
[1739138048513,0.5716843,94825.0,94823.0,0.00015811]
[1739138048722,0.2108843,94825.0,94823.0,0.00015811]
[1739138050416,0.22143731,94825.0,94823.0,0.00015811]
[1739138054825,0.01055301,94825.0,94823.0,0.00015811]
[1739138055127,0.210869,94832.0,94823.0,0.00015811]
[1739138056415,0.01089451,94833.0,94826.0,0.3608]
[1739138056728,0.00015811,94834.0,94828.0,0.2108752]
[1739138056922,0.00015811,94834.0,94823.0,0.36095811]
[1739138057127,0.00015811,94834.0,94824.0,0.01439435]
[1739138057329,0.00015811,94834.0,94825.0,0.01439435]
[1739138057517,0.00015811,94834.0,94826.0,0.01439435]
[1739138057713,0.00015811,94834.0,94824.0,0.2108838]
[1739138058530,0.00015811,94834.0,94825.0,0.2108817]
[1739138058732,0.00015811,94834.0,94823.0,0.36095811]
[1739138058931,0.00015811,94834.0,94833.0,0.2108654]
[1739138059728,0.00015811,94834.0,94833.0,0.22508322]
[1739138060621,0.01043413,94843.0,94842.0,0.2108454]
[1739138060926,0.2108027,94862.0,94852.0,0.2108222]
[1739138061133,0.2543,94867.0,94852.0,0.2108222]
[1739138061134,0.4650898,94867.0,94852.0,0.210822]
[1739138061329,0.4657698,94867.0,94852.0,0.210822]
[1739138061728,0.01037742,94858.0,94852.0,0.210822]
[1739138062437,0.01046134,94860.0,94854.0,0.2108184]
[1739138062627,0.00015811,94863.0,94860.0,0.210804]
[1739138062928,0.00015811,94863.0,94861.0,0.6396682]
[1739138063134,0.00015811,94863.0,94861.0,0.6247]
[1739138063332,0.00015811,94863.0,94862.0,0.01496964]
[1739138063726,0.00015811,94863.0,94862.0,0.01500784]
[1739138063925,0.00015811,94863.0,94862.0,0.40070784]
[1739138064235,0.36095811,94863.0,94862.0,0.01500784]
[1739138064434,0.36095811,94863.0,94850.0,0.3608]
[1739138064632,0.36095811,94863.0,94851.0,0.01500674]
[1739138064933,0.36095811,94863.0,94852.0,0.01500674]
[1739138065135,0.36095811,94863.0,94850.0,0.2108275]
[1739138065338,0.36095811,94863.0,94851.0,0.01494498]
[1739138065535,0.36095811,94863.0,94852.0,0.22576668]
[1739138065726,0.36095811,94863.0,94853.0,0.37594031]
[1739138065925,0.3608,94872.0,94869.0,0.2107849]
[1739138066137,0.3608,94872.0,94870.0,0.7692]
[1739138066326,0.3608,94872.0,94871.0,0.257]
[1739138066526,0.01049427,94884.0,94871.0,0.257]
[1739138066832,0.3608,94886.0,94871.0,0.257]
[1739138066833,0.3608,94886.0,94872.0,0.01535286]
[1739138067029,0.3608,94886.0,94873.0,0.01535281]
[1739138067230,0.3608,94886.0,94876.0,0.12805867]
[1739138067428,0.01061537,94887.0,94877.0,0.01534794]
[1739138067634,0.00015811,94888.0,94885.0,0.3608]
[1739138068932,0.3608,94887.0,94871.0,0.257]
[1739138069137,0.3608,94876.0,94871.0,0.257]
[1739138069736,0.2107591,94881.0,94871.0,0.257]
[1739138070124,0.00015811,94888.0,94875.0,0.2107716]
[1739138070329,0.00015811,94888.0,94881.0,0.2107567]
[1739138071740,0.00015811,94888.0,94871.0,0.257]
[1739138071940,0.00015811,94888.0,94887.0,0.2107455]
[1739138073640,0.00015811,94888.0,94887.0,0.5715455]
[1739138073839,0.00015811,94888.0,94887.0,0.58721599]
[1739138074036,0.1,94900.0,94887.0,0.58721599]
[1739138074037,0.1,94900.0,94887.0,0.37647049]
[1739138074238,0.1,94900.0,94892.0,0.2107323]
[1739138075740,0.1,94900.0,94896.0,0.210724]
[1739138078245,0.1,94900.0,94899.0,0.2107188]
[1739138080339,0.1,94900.0,94899.0,0.22641002]
[1739138080534,0.00015811,94905.0,94904.0,0.2107077]
[1739138082657,0.00015811,94905.0,94896.0,0.00056]
[1739138082948,0.00015811,94905.0,94899.0,0.2107169]
[1739138084239,0.00015811,94905.0,94903.0,0.2107098]
[1739138084444,0.00015811,94905.0,94904.0,0.3608]
[1739138084951,0.00015811,94905.0,94904.0,0.37595201]
[1739138085150,0.3608,94927.0,94926.0,0.2106589]
[1739138085352,0.2106243,94942.0,94936.0,0.2106366]
[1739138085845,0.73906,94947.0,94921.0,0.12576]
[1739138086147,0.3608,94954.0,94930.0,0.19199257]
[1739138086341,0.00010305,94943.0,94940.0,0.2106265]
[1739138086542,0.00010305,94943.0,94941.0,0.2106243]
[1739138088644,0.00010305,94943.0,94929.0,0.3608]
[1739138088645,0.2106246,94942.0,94935.0,0.2106377]
[1739138088849,0.2106283,94940.0,94928.0,0.2106525]
[1739138089053,0.2106283,94940.0,94930.0,0.2106498]
[1739138089249,0.2106283,94940.0,94932.0,0.2106445]
[1739138089453,0.00010305,94943.0,94927.0,0.3608]
[1739138089646,0.00010305,94943.0,94925.0,0.00015802]
[1739138089647,0.12788094,94940.0,94928.0,0.01469169]
[1739138089844,0.3608,94934.0,94925.0,0.00015802]
[1739138090153,0.2106556,94928.0,94925.0,0.00015802]
[1739138090457,0.2106556,94928.0,94926.0,0.01481333]
[1739138090650,0.2106556,94928.0,94927.0,0.01481353]
[1739138090851,0.01086227,94929.0,94925.0,0.00015802]
[1739138091058,0.5714589,94926.0,94925.0,0.00015802]
[1739138095953,0.2106989,94908.0,94902.0,0.25076399]
[1739138096546,0.2106989,94908.0,94894.0,0.2107287]
[1739138097055,0.2106989,94908.0,94898.0,0.00015802]
[1739138099047,0.2107112,94903.0,94898.0,0.00015802]
[1739138099851,0.2107148,94901.0,94898.0,0.00015802]
[1739138101049,0.2107184,94900.0,94898.0,2e-08]
[1739138102056,0.2107184,94900.0,94871.0,0.0015811]
[1739138102057,0.2107788,94872.0,94871.0,0.0015811]
[1739138102260,0.3608,94872.0,94852.0,0.264]
[1739138102559,0.2108033,94861.0,94860.0,0.12926399]
[1739138105555,0.2108153,94856.0,94851.0,0.00015811]
[1739138105752,0.3608,94862.0,94851.0,0.00015811]
[1739138105954,0.2107947,94865.0,94860.0,0.2108055]
[1739138106257,0.00015811,94870.0,94863.0,0.2107984]
[1739138106647,0.00015811,94870.0,94855.0,0.2108159]
[1739138106853,0.2108112,94858.0,94854.0,0.11868]
[1739138107055,0.3608,94867.0,94851.0,0.00015811]
[1739138107252,0.00015811,94870.0,94868.0,0.2107873]
[1739138107558,0.00015811,94870.0,94869.0,0.723]
[1739138109860,0.00015811,94870.0,94869.0,0.3622]
[1739138110162,0.00015811,94870.0,94859.0,0.118]
[1739138110163,0.2107973,94864.0,94859.0,0.118]
[1739138110460,0.00015811,94870.0,94857.0,0.2108102]
[1739138110659,0.00015811,94870.0,94852.0,0.3871]
[1739138111558,0.2108032,94861.0,94854.0,0.2108172]
[1739138111963,0.00015811,94870.0,94854.0,0.2108172]
[1739138112151,0.2108131,94857.0,94854.0,0.2108172]
[1739138112349,0.2107993,94863.0,94859.0,0.2108068]
[1739138112762,0.2058036,94861.0,94852.0,0.3871]
[1739138113155,0.2058036,94861.0,94855.0,0.2108156]
[1739138113365,0.2107862,94869.0,94852.0,0.3871]
[1739138113565,0.00015811,94870.0,94859.0,0.19201725]
[1739138113754,0.00015811,94870.0,94868.0,0.2107866]
[1739138114154,0.3608,94892.0,94859.0,0.19201725]
[1739138114461,0.2107391,94890.0,94878.0,0.2107651]
[1739138114761,0.2107391,94890.0,94879.0,1.016]
[1739138114958,0.3608,94892.0,94889.0,0.2107404]
[1739138115666,0.3608,94892.0,94890.0,0.2107375]
[1739138116059,0.00015811,94900.0,94899.0,0.2107188]
[1739138116763,0.3608,94916.0,94899.0,0.3608]
[1739138117061,0.3608,94916.0,94901.0,0.3608]
[1739138117265,0.3608,94916.0,94902.0,0.2459]
[1739138117968,0.3608,94916.0,94905.0,0.2107051]
[1739138118271,0.3608,94916.0,94907.0,0.2107011]
[1739138118953,0.3608,94916.0,94902.0,0.2459]
[1739138119463,0.3608,94916.0,94911.0,0.2106911]
[1739138119655,0.3608,94916.0,94914.0,0.2106853]
[1739138119856,0.01043684,94934.0,94914.0,0.2106853]
[1739138119857,0.3608,94948.0,94915.0,0.3805]
[1739138120060,0.2106077,94950.0,94933.0,0.3608]
[1739138120275,0.2106077,94950.0,94934.0,0.2607]
[1739138120867,0.3608,94958.0,94934.0,0.2607]
[1739138121067,0.2106225,94943.0,94934.0,0.2607]
[1739138121367,0.2106272,94941.0,94934.0,0.2607]
[1739138121665,0.3608,94958.0,94933.0,0.36095802]
[1739138121666,0.2106387,94936.0,94933.0,0.36095802]
[1739138122167,0.3608,94947.0,94933.0,0.36095802]
[1739138123463,0.2106317,94939.0,94933.0,0.36095802]
[1739138124164,0.01080461,94955.0,94940.0,0.2106262]
[1739138124370,0.00068,94962.0,94950.0,0.3608]
[1739138124563,0.3608,94969.0,94960.0,0.3608]
[1739138124764,0.3608,94969.0,94965.0,0.2105708]
[1739138125069,0.2105431,94979.0,94968.0,0.3608]
[1739138125269,0.3608,94987.0,94968.0,0.3608]
[1739138125270,0.3608,94987.0,94977.0,0.3608]
[1739138125465,0.1,95000.0,94982.0,0.2105335]
[1739138125666,0.2105141,94992.0,94983.0,0.2105307]
[1739138125967,0.1,95000.0,94978.0,0.2478]
[1739138126156,0.1,95000.0,94997.0,0.3608]
[1739138126759,0.1,95000.0,94997.0,0.83624]
[1739138126972,1.01898,95034.0,94997.0,0.83624]
[1739138127156,0.18264782,95012.0,94997.0,1.13624]
[1739138127363,0.21274028,95030.0,95011.0,0.3608]
[1739138127564,0.2104394,95025.0,95024.0,0.3608]
[1739138127860,0.210431,95029.0,95012.0,0.2478]
[1739138128067,0.210431,95029.0,95021.0,0.3608]
[1739138129160,0.21274028,95030.0,95021.0,0.3608]
[1739138129362,0.21274028,95030.0,95029.0,0.3608]
[1739138130170,0.24313175,95038.0,95029.0,0.3608]
[1739138130362,0.24313175,95038.0,95037.0,0.5712129]
[1739138131174,0.33430615,95065.0,95046.0,0.2103929]
[1739138131367,0.33430615,95065.0,95055.0,0.931973]
[1739138131565,0.33430615,95065.0,95055.0,0.83576]
[1739138131768,0.54465705,95065.0,95064.0,0.3608]
[1739138131966,0.2103549,95064.0,95055.0,0.47496]
[1739138132372,0.2103239,95078.0,95063.0,0.3608]
[1739138132571,0.00072,95080.0,95073.0,0.2103332]
[1739138132775,0.2103092,95084.0,95073.0,0.2103332]
[1739138132979,0.2103092,95084.0,95072.0,0.3608]
[1739138132980,0.0026399,95086.0,95074.0,0.2103291]
[1739138133277,0.0026399,95086.0,95076.0,0.2103254]
[1739138133475,0.0026399,95086.0,95085.0,0.2103067]
[1739138133971,0.1,95100.0,95085.0,0.2103067]
[1739138134168,0.1,95100.0,95097.0,0.3608]
[1739138134674,0.1,95100.0,95099.0,0.3608]
[1739138134879,0.1,95100.0,95099.0,0.4748]
[1739138135069,0.02075754,95100.0,95099.0,0.7748]
[1739138135266,0.02075754,95100.0,95099.0,0.4748]
[1739138135462,0.23103104,95100.0,95099.0,0.3608]
[1739138135677,0.2102779,95098.0,95089.0,0.00015777]
[1739138135974,0.2102779,95098.0,95090.0,0.11396]
[1739138136169,0.2102779,95098.0,95097.0,0.3608]
[1739138136371,0.02075754,95100.0,95097.0,0.3608]
[1739138137178,0.2102779,95098.0,95097.0,0.3608]
[1739138137974,0.2102779,95098.0,95096.0,0.3608]
[1739138139676,0.02075754,95100.0,95096.0,0.3608]
[1739138140269,0.00068,95130.0,95096.0,0.6608]
[1739138140469,0.00393801,95137.0,95125.0,0.3608]
[1739138140972,0.00393801,95137.0,95114.0,0.3608]
[1739138141273,0.19201725,95130.0,95121.0,0.00015768]
[1739138141468,0.2102249,95122.0,95121.0,0.00015768]
[1739138141877,0.2102669,95103.0,95091.0,0.3608]
[1739138142073,0.3608,95110.0,95091.0,0.3608]
[1739138142277,0.55281725,95101.0,95078.0,0.3608]
[1739138142481,0.55281725,95101.0,95069.0,0.3608]
[1739138142680,0.2102977,95090.0,95087.0,0.3608]
[1739138142976,0.00068,95110.0,95088.0,0.114]
[1739138143175,1.1192,95121.0,95109.0,0.3608]
[1739138143176,0.2102379,95117.0,95109.0,0.3608]
[1739138143477,0.3795,95121.0,95113.0,0.2102441]
[1739138143686,0.2102166,95126.0,95120.0,0.3608]
[1739138143983,0.00072,95121.0,95120.0,0.3608]
[1739138144280,0.00015624,95127.0,95120.0,0.5710293]
[1739138144779,0.00015624,95127.0,95120.0,0.3608]
[1739138144980,0.2102222,95124.0,95120.0,0.3608]
[1739138145181,0.2102252,95122.0,95120.0,0.3608]
[1739138145369,0.00015624,95127.0,95120.0,0.3608]
[1739138145572,0.2102161,95126.0,95120.0,0.3608]
[1739138145781,0.2102225,95124.0,95120.0,0.3608]
[1739138146174,0.00015624,95127.0,95120.0,0.3608]
[1739138146379,0.00015624,95127.0,95121.0,0.3608]
[1739138146570,0.2102214,95124.0,95121.0,0.3608]
[1739138146767,0.2102249,95122.0,95121.0,0.3608]
[1739138147683,0.00015624,95127.0,95121.0,0.56708763]
[1739138147878,0.00015624,95127.0,95121.0,0.35686133]
[1739138148073,0.00263183,95137.0,95131.0,0.2102037]
[1739138148388,0.2101666,95149.0,95135.0,0.3608]
[1739138148684,0.2101666,95149.0,95148.0,0.3608]
[1739138149186,0.2101545,95154.0,95148.0,0.3608]
[1739138149578,0.2101439,95159.0,95149.0,0.2101638]
[1739138149973,0.2539,95163.0,95149.0,0.2101638]
[1739138150175,0.2539,95163.0,95148.0,0.3608]
[1739138150374,0.2101537,95155.0,95148.0,0.3608]
[1739138150985,0.2101537,95155.0,95149.0,0.2101652]
[1739138151587,0.2101609,95151.0,95148.0,0.3608]
[1739138151775,0.2101434,95159.0,95148.0,0.3608]
[1739138152082,0.2101434,95159.0,95153.0,0.2101563]
[1739138152286,0.3608,95174.0,95157.0,0.2101454]
[1739138152584,0.3608,95174.0,95148.0,0.3608]
[1739138152785,0.2101158,95172.0,95148.0,0.5709665]
[1739138152977,0.3608,95174.0,95150.0,0.2101628]
[1739138153178,0.2101421,95160.0,95148.0,0.3608]
[1739138153784,0.2101421,95160.0,95155.0,0.2101509]